Cogmind - Beta 10.2 @@@ ROGUE MODE // 2021.06.26 @ 09:50:16 Player: 3.14 Result: Self-destructed Performance ------------- Evolutions (7) 3500 Regions Visited (19) 3800 Robots Destroyed (221) 1105 Value Destroyed (9650) 9650 Prototype IDs (33) 660 Alien Tech Used (2) 400 Bonus (3419) 3419 TOTAL SCORE: 22534 Bonus ------- High Alert Combat Kills 1033 Follower Combat Kills 1625 Met Zhirov 300 A7 Reached Mainframe 300 Met R17 at Cetus 500 Friendly Fire -339 Cogmind --------- Core Integrity 1014/1300 Matter 161/300 Energy 21/415 System Corruption 10% Temperature Cool (0) Movement Treading (180) Ox1 Location -3/Research Parts ------- > --- POWER (3) -------- Light Neutrino Core Fusion Reactor Light Antimatter Reactor > --- PROPULSION (4) --- Improved Heavy Treads Centrium Heavy Treads > --- UTILITY (12) ----- Advanced Cooling System Medium Storage Unit High-capacity Storage Unit High-capacity Storage Unit Core Analyzer Improved Transmission Jammer Hardened Heavy Armor Plating Layered Medium Armor Plating Thermal Shield Improved Force Field System Restoration Module > --- WEAPON (2) ------- Gamma Rifle Gamma Rifle > --- INVENTORY (24) --- Reinforced Fission Core Particle Reactor Centrium Heavy Treads Centrium Heavy Treads Energy Well (500) Improved Energy Well (600) Long-range Sensor Array Improved Armor Integrity Analyzer Layered Heavy Armor Plating Centrium Medium Armor Plating Centrium Medium Armor Plating EM Dispersion Field Heavy Phase Cannon Nova Cannon Heavy Rocket Launcher Long-range Missile Launcher Fusion Bomb Launcher Plasma Sword Peak State ------------ > --- POWER ------------ Light Neutrino Core Fusion Reactor Light Antimatter Reactor > --- PROPULSION ------- Centrium Heavy Treads Centrium Heavy Treads > --- UTILITY ---------- Advanced Power Amplifier Advanced Cooling System Medium Storage Unit High-capacity Storage Unit High-capacity Storage Unit Advanced Signal Interpreter Core Analyzer Improved Transmission Jammer Heavy Reflective Plating EM Dispersion Field Improved Force Field > --- WEAPON ----------- Gamma Rifle Gamma Rifle > --- INVENTORY -------- Reinforced Fission Core Centrium Heavy Treads Centrium Heavy Treads Energy Well Long-range Sensor Array Improved Armor Integrity Analyzer Layered Medium Armor Plating Layered Heavy Armor Plating Centrium Medium Armor Plating Centrium Medium Armor Plating Thermal Shield Advanced Component Analysis Suite System Restoration Module Transdimensional Reconstructor Long-range Proton Cannon Heavy Phase Cannon Matter Neutralizer Nova Cannon Heavy Rocket Launcher Long-range Missile Launcher Plasma Sword [Rating: 145] Favorites ----------- Power Reinforced Deuterium Engine Engine Reinforced Deuterium Engine Power Core Light Neutrino Core Reactor Quantum Reactor Propulsion Centrium Heavy Treads Treads Centrium Heavy Treads Leg Aluminum Leg Wheel Wheel Utility High-capacity Storage Unit Device Long-range Sensor Array Storage High-capacity Storage Unit Processor Core Analyzer Hackware Hacking Suite Protection Layered Heavy Armor Plating Weapon Improved EM Pulse Cannon Energy Gun Gamma Rifle Energy Cannon Improved EM Pulse Cannon Ballistic Gun Improved Assault Rifle Launcher Long-range Missile Launcher Slashing Weapon Plasma Sword Build | -11 -10 -9 -9 -8 -7 -6 -6 -6 -6 -6 -5 -5 -5 -5 -4 -4 -4 -4 -3 ------- Run | Scr Mat Mat Min Mat Fac Fac Ext Cet Arc Hub Fac Upp Upp Zhi Pro Fac Upp Upp Res Slots Evolved 14 | . . 2 . 2 2 2 . . . . 2 . . . . 2 . . 2 Power 2 | . . . . . . 1 . . . . . . . . . 1 . . . Propulsion 2 | . . . . 1 1 . . . . . . . . . . . . . . Utility 10 | . . 2 . 1 1 1 . . . . 2 . . . . 1 . . 2 Weapon . | . . . . . . . . . . . . . . . . . . . . Parts Attached 285 | 8 2 7 . 45 17 16 23 11 . . 41 11 1 7 14 7 10 . 65 Power 23 | 2 1 . . 4 2 1 2 1 . . 2 1 . 2 . 3 1 . 1 Engine 12 | 2 1 . . 2 1 1 2 . . . . 1 . 1 . 1 . . . Core 6 | . . . . 2 1 . . . . . 1 . . . . 1 . . 1 Reactor 5 | . . . . . . . . 1 . . 1 . . 1 . 1 1 . . Propulsion 43 | 2 . 3 . 13 7 2 11 2 . . 2 . . . . . . . 1 Treads 41 | 2 . 3 . 12 6 2 11 2 . . 2 . . . . . . . 1 Leg 1 | . . . . 1 . . . . . . . . . . . . . . . Wheel 1 | . . . . . 1 . . . . . . . . . . . . . . Hover . | . . . . . . . . . . . . . . . . . . . . Flight . | . . . . . . . . . . . . . . . . . . . . Utility 102 | 2 . 2 . 8 4 2 1 2 . . 10 6 1 5 9 2 8 . 40 Device 65 | . . . . 1 . 2 . 1 . . 4 5 1 3 9 2 7 . 30 Storage 11 | 2 . 1 . 2 2 . . . . . 1 . . 1 . . . . 2 Processor 4 | . . . . . 2 . . . . . 1 . . . . . . . 1 Hackware 1 | . . . . . . . . . . . . . . . . . . . 1 Protection 21 | . . 1 . 5 . . 1 1 . . 4 1 . 1 . . 1 . 6 Artifact . | . . . . . . . . . . . . . . . . . . . . Weapon 117 | 2 1 2 . 20 4 11 9 6 . . 27 4 . . 5 2 1 . 23 Energy Gun 16 | 1 . . . 4 . . . . . . 1 . . . . . . . 10 Energy Cannon 60 | . . . . 3 4 8 6 4 . . 19 1 . . 4 1 1 . 9 Ballistic Gun 14 | 1 1 2 . 10 . . . . . . . . . . . . . . . Ballistic Cannon . | . . . . . . . . . . . . . . . . . . . . Launcher 17 | . . . . 3 . 2 3 2 . . 3 1 . . 1 1 . . 1 Special Weapon . | . . . . . . . . . . . . . . . . . . . . Impact Weapon . | . . . . . . . . . . . . . . . . . . . . Slashing Weapon 10 | . . . . . . 1 . . . . 4 2 . . . . . . 3 Piercing Weapon . | . . . . . . . . . . . . . . . . . . . . Special Melee Weapon . | . . . . . . . . . . . . . . . . . . . . Unidentified Prototypes 19 | . . 1 . 3 2 . . 2 . . 2 . . 3 . 1 1 . 4 Parts Lost 26 | . . . . 12 3 4 1 . . . 4 . . . . . . . 2 Power 3 | . . . . 3 . . . . . . . . . . . . . . . Propulsion 10 | . . . . 4 3 2 1 . . . . . . . . . . . . Utility 7 | . . . . 3 . . . . . . 2 . . . . . . . 2 Weapon 6 | . . . . 2 . 2 . . . . 2 . . . . . . . . Highest Loss Streak 9 | . . . . 9 1 4 1 . . . 2 . . . . . . . 2 Average Slot Usage (%) 88 | . 100 85 100 96 94 99 99 88 86 86 79 82 82 82 82 84 83 84 84 Engine 5 | . 14 11 11 4 5 13 12 11 6 6 1 4 5 5 5 5 5 5 . Core 1 | . . . . 3 1 . . . . . 3 . . . . . . . 4 Reactor 3 | . . . . . . . . 1 6 6 5 5 5 5 5 10 10 10 9 Treads 17 | . 28 22 22 26 23 25 26 14 13 13 10 11 11 11 11 10 10 10 9 Device 9 | . . . . . 7 13 9 6 6 6 5 11 11 10 11 15 14 15 22 Storage 19 | . 28 24 33 27 23 20 20 20 20 20 17 17 17 17 17 15 15 15 14 Processor 8 | . . . . . 7 13 13 13 13 13 13 11 11 11 11 10 10 10 8 Protection 6 | . . 5 11 15 6 . 3 6 6 6 7 5 5 5 5 5 5 5 4 Energy Cannon 7 | . . . . . 14 10 12 12 13 13 10 10 . . 6 9 10 10 3 Ballistic Gun 3 | . 24 22 22 15 . . . . . . . . . . . . . . . Naked Turns . | . . . . . . . . . . . . . . . . . . . . Heaviest Build 173 | 17 19 30 30 39 76 86 97 105 105 105 155 146 141 151 158 170 173 158 167 Greatest Support 160 | 40 40 40 40 62 88 88 100 160 160 160 160 160 160 160 160 160 160 160 160 Greatest Overweight (x) 7 | . . . . 7 7 . 2 1 . . . . . . . 1 1 . 1 Average Overweight (x) . | . . . . . . . . . . . . . . . . 1 . . . Largest Inventory Capacity 28 | 8 8 12 12 14 20 20 20 20 20 20 28 24 24 24 24 24 24 24 24 Average Capacity 19 | 5 8 9 12 12 17 20 20 20 20 20 23 24 24 24 24 24 24 24 24 Most Carried 24 | 4 8 10 10 14 20 20 20 20 20 20 24 24 24 24 24 24 24 24 24 Average Carried 19 | 2 7 7 10 11 15 19 19 19 20 20 22 23 24 23 24 23 23 23 23 Final Capacity 24 | 8 8 12 12 14 20 20 20 20 20 20 24 24 24 24 24 24 24 24 24 Final Carried 24 | 4 8 10 10 14 20 20 20 20 20 20 23 24 24 24 24 24 24 24 21 Class Distribution -------------------- 73% | Scavenger-Mutant 8% | Generator-Mutant 7% | Hauler-Mutant 5% | Mutant 3% | Commander-Mutant Dominant Class ---------------- Mutant | -10/Materials Mutant | -9/Materials Scavenger-Mutant | -9/Mines Scavenger-Mutant | -8/Materials Scavenger-Mutant | -7/Factory Scavenger-Mutant | -6/Factory Hauler-Mutant | -6/Extension Scavenger-Mutant | -6/Cetus Scavenger-Mutant | -6/Archives Scavenger-Mutant | -6/Hub_04(d) Scavenger-Mutant | -5/Factory Scavenger-Mutant | -5/Upper Caves Scavenger-Mutant | -5/Upper Caves Scavenger-Mutant | -5/Zhirov Scavenger-Mutant | -4/Proximity Caves Generator-Mutant | -4/Factory Scavenger-Mutant | -4/Upper Caves Scavenger-Mutant | -4/Upper Caves Scavenger-Mutant | -3/Research Resources | -11 -10 -9 -9 -8 -7 -6 -6 -6 -6 -6 -5 -5 -5 -5 -4 -4 -4 -4 -3 ----------- Run | Scr Mat Mat Min Mat Fac Fac Ext Cet Arc Hub Fac Upp Upp Zhi Pro Fac Upp Upp Res Matter Collected 4386 | 281 142 259 . 1102 131 258 305 136 . 19 510 83 18 . 130 302 100 . 610 Remotely . | . . . . . . . . . . . . . . . . . . . . Salvage Created 11598 | 86 283 568 . 1825 640 781 1473 301 82 4 2019 100 . . 141 403 684 259 1949 Parts 541 | 4 24 39 . 108 21 40 50 14 5 . 67 8 . . 13 15 16 11 106 Haulers Intercepted 11 | . 1 2 . 3 2 . 1 . . . 1 . . . . . 1 . . Recyclers Shooed 13 | . . 3 . 1 2 1 2 . . . 1 . . . . 1 . . 2 Parts Field Recycled . | . . . . . . . . . . . . . . . . . . . . Retrieved Matter . | . . . . . . . . . . . . . . . . . . . . Parts Self-Destructed 14 | . . . . . . . . . . . . . . . 9 . 2 3 . Prevented 30 | . . . . . . . . . . . . 8 . . 1 . 13 8 . Kills | -11 -10 -9 -9 -8 -7 -6 -6 -6 -6 -6 -5 -5 -5 -5 -4 -4 -4 -4 -3 ------- Run | Scr Mat Mat Min Mat Fac Fac Ext Cet Arc Hub Fac Upp Upp Zhi Pro Fac Upp Upp Res Combat Hostiles Destroyed 175 | . 7 12 . 35 8 14 14 5 1 . 27 1 . . 10 4 8 3 26 Melee 2 | . . . . . . . . . . . . . . . . . . . 2 Guns 53 | . 7 12 . 30 . . . . . . . . . . . . . . 4 Cannons 49 | . . . . . 8 4 2 4 . . 14 . . . 1 . 5 2 9 AOE 36 | . . . . 5 . 8 4 . . . 5 . . . 9 . 1 . 4 Classes Destroyed 16 | 2 5 2 . 2 2 . 1 . . . 1 . . . 1 . . . . Worker 5 | . . . . 1 . . . . . 1 1 . . . . . . . 2 Builder 4 | . . . . . 1 1 2 . . . . . . . . . . . . Tunneler 4 | 1 1 . . . . . . . . . . . . . . . . . 2 Hauler 11 | . 1 2 . 3 2 . 1 . . . 1 . . . . . 1 . . Recycler 7 | 1 . 1 . . 1 1 2 . . . 1 . . . . . . . . Minesweeper 1 | . . . . . . . . . . . . . . . 1 . . . . Operator 2 | . 1 . . . . . . . . . . . . . . . . . 1 Watcher 11 | . 1 . . . 1 . 3 1 . . 1 . . . . 1 . . 3 Swarmer 34 | . 3 4 . 3 . 8 . 1 . . . . . . 9 . 2 . 4 Grunt 73 | . 4 6 . 22 5 1 8 2 . . 12 . . . . . 5 2 6 Brawler 3 | . . . . . . . . . . . 1 . . . . . . . 2 Duelist 2 | . . 1 . . . . . . . . 1 . . . . . . . . Sentry 26 | . . 1 . 9 . 1 3 . 1 . 5 . . . . 4 1 1 . Hunter 10 | . . . . 1 1 3 1 . . . 4 . . . . . . . . Programmer 23 | . . . . . 2 1 1 1 . . 4 . . . 1 . . . 13 Behemoth 3 | . . . . . . . 1 . . . . 1 . . . . . . 1 Cetus Guard 1 | . . . . . . . . 1 . . . . . . . . . . . Thug 1 | . . . . . . . 1 . . . . . . . . . . . . Best Kill Streak 8 | 2 6 8 . 8 4 5 7 2 1 1 6 1 . . 6 1 5 3 6 Combat Bots Only 8 | . 2 6 . 8 4 4 6 2 1 . 6 1 . . 6 1 5 3 4 Max Kills in Single Turn 3 | 1 1 1 . 2 1 3 2 1 1 1 1 1 . . 3 1 1 1 2 Gunslinging . | . . . . . . . . . . . . . . . . . . . . Exploded 3 | . . . . 2 . 2 1 . . . 1 . . . 3 . 1 . 1 Melee 1 | . . . . . . . . . . . . . . . . . . . 1 Uniques/NPCs Destroyed . | . . . . . . . . . . . . . . . . . . . . Combat | -11 -10 -9 -9 -8 -7 -6 -6 -6 -6 -6 -5 -5 -5 -5 -4 -4 -4 -4 -3 -------- Run | Scr Mat Mat Min Mat Fac Fac Ext Cet Arc Hub Fac Upp Upp Zhi Pro Fac Upp Upp Res Damage Taken 10976 | . 144 381 . 2648 689 1013 612 209 140 21 2422 127 . . 196 128 236 113 1897 Core 1059 | . 17 82 . 316 72 58 86 52 19 8 141 . . . 2 9 7 . 190 Absorbed by Shields 1838 | . . . . . . . 24 74 . . . . . . 159 132 245 118 1086 Reduced by Siege Mode 28 | . . . . . . . . . . . . . . . . . . . 28 Core Remaining (%) 82 | 100 93 . 79 42 89 . . . . 73 . . . . 85 . . 98 . Volleys Fired 580 | 9 28 38 . 117 45 24 44 15 4 1 88 5 . . 11 17 19 7 108 Largest 2 | 2 2 2 . 2 2 2 2 2 2 2 2 2 . . 2 2 2 2 2 Hottest 211 | 70 70 43 . 73 138 138 138 138 138 138 144 144 . . 128 144 156 156 211 Shots Fired 1051 | 17 56 76 . 222 86 37 73 24 8 2 163 10 . . 15 33 38 14 177 Gun 454 | 17 56 76 . 214 . . . . . . 1 . . . . . . . 90 Cannon 536 | . . . . . 86 26 61 20 8 2 150 10 . . 8 32 38 14 81 Launcher 61 | . . . . 8 . 11 12 4 . . 12 . . . 7 1 . . 6 Special . | . . . . . . . . . . . . . . . . . . . . Kinetic 337 | 9 43 76 . 209 . . . . . . . . . . . . . . . Thermal 287 | 8 13 . . . 82 6 1 1 . . 87 . . . 8 . . . 81 Explosive 22 | . . . . 3 . . . . . . 5 . . . 7 1 . . 6 Electromagnetic 405 | . . . . 10 4 31 72 23 8 2 71 10 . . . 32 38 14 90 Robot Hit Streak 38 | 5 7 14 . 27 26 13 27 38 7 6 32 30 . . 9 5 14 12 21 Robot Miss Streak 3 | 1 3 3 . 3 2 1 2 1 1 1 3 1 . . 1 2 1 1 3 Penetration Max . | . . . . . . . . . . . . . . . . . . . . Secondary Targets 2 | . . . . 2 . . . . . . . . . . . . . . . Max Gunslinging Chain 1 | . . . . 1 . . . . . . . . . . . . . . . Shots Hit Robots 798 | 13 34 52 . 194 62 22 50 16 7 1 128 9 . . 9 22 30 12 137 Core Hits 410 | 3 16 27 . 86 20 27 41 16 4 . 68 . . . 14 7 17 7 57 Critical Hits 21 | . . . . 1 7 1 1 . . . 10 1 . . . . . . . Critical Kills 8 | . . . . 1 3 . . . . . 4 . . . . . . . . Critical Parts Destroyed 9 | . . . . . 4 1 . . . . 4 . . . . . . . . Melee Attacks 31 | . . . . . . 1 . . . . 4 2 1 . 3 . . . 20 Impact . | . . . . . . . . . . . . . . . . . . . . Slashing 31 | . . . . . . 1 . . . . 4 2 1 . 3 . . . 20 Piercing . | . . . . . . . . . . . . . . . . . . . . Sneak Attacks . | . . . . . . . . . . . . . . . . . . . . Combat Hostiles . | . . . . . . . . . . . . . . . . . . . . Follow-up Attacks . | . . . . . . . . . . . . . . . . . . . . Damage Inflicted 24890 | 128 387 740 . 3683 1556 1088 2399 893 172 86 4399 188 . . 1187 650 1099 370 5865 Guns 5944 | 128 386 711 . 2885 . . . . . . 28 . . . . . . . 1806 Cannons 12407 | . . . . . 1523 643 1270 380 172 25 3325 172 . . 245 650 969 370 2663 Explosions 5865 | . . . . 780 . 445 1109 513 . 58 954 . . . 942 . 130 . 934 Melee 455 | . . . . . . . . . . . . . . . . . . . 455 Ramming 219 | . 1 29 . 18 33 . 20 . . 3 92 16 . . . . . . 7 Kinetic 3897 | 78 311 711 . 2797 . . . . . . . . . . . . . . . Thermal 7537 | 50 75 . . 181 1409 278 310 229 . 58 1909 . . . 245 . 130 . 2663 Explosive 2597 | . . . . 299 . . . . . . 422 . . . 942 . . . 934 Electromagnetic 10185 | . . . . 388 114 810 2069 664 172 25 1976 172 . . . 650 969 370 1806 Impact . | . . . . . . . . . . . . . . . . . . . . Slashing 455 | . . . . . . . . . . . . . . . . . . . 455 Piercing . | . . . . . . . . . . . . . . . . . . . . Highest Corruption 10 | . . . . 5 3 2 3 3 3 3 3 3 . . 2 . . . 10 Average Corruption 2 | . . . . 5 2 1 2 3 3 3 1 2 . . 1 . . . 1 Corruption Purged 8 | . . . . . . . . . . . . 3 . . 2 . . . 3 Effects 103 | . . . . 17 12 3 27 8 6 2 7 7 . . 4 . . . 10 Message Errors 26 | . . . . 3 5 2 7 3 1 1 . . . . 1 . . . 3 Matter Fused 22 | . . . . 6 4 . 4 1 2 1 2 1 . . . . . . 1 Heat Flow Errors 9 | . . . . 2 . . 3 2 . . 1 . . . . . . . 1 Energy Discharges 13 | . . . . 2 1 . 2 1 1 . 2 3 . . 1 . . . . Data Loss (minor) 13 | . . . . . 1 1 2 . 1 . . 3 . . 2 . . . 3 Targeting Errors 15 | . . . . 2 1 . 7 . 1 . 2 . . . . . . . 2 Weapon Failures 5 | . . . . 2 . . 2 1 . . . . . . . . . . . Overload Shots 2 | . . . . . . . 1 1 . . . . . . . . . . . Overflow Damage 642 | . . . . 53 64 . 90 . . . 34 15 . . 85 5 60 2 234 Projectiles 292 | . . . . . 64 . 40 . . . 14 . . . . 5 60 2 107 Explosions 293 | . . . . 53 . . 50 . . . 20 . . . 85 . . . 85 Melee 57 | . . . . . . . . . . . . 15 . . . . . . 42 Knockbacks 4 | . . 2 . 1 . . . . . . 1 . . . . . . . . Impact 4 | . . 2 . 1 . . . . . . 1 . . . . . . . . Kinetic . | . . . . . . . . . . . . . . . . . . . . Secondary . | . . . . . . . . . . . . . . . . . . . . Self-Inflicted Damage 150 | . . . . . . . 18 . . . 49 . . . 28 . 55 . . Shots 4 | . . . . . . . 1 . . . 1 . . . 1 . 1 . . Rammed 21 | . 1 3 . 3 4 . 3 . . . 5 1 . . . . . . 1 Targets Rammed 25 | . 2 3 . 3 5 . 4 . . 1 5 1 . . . . . . 1 Kicked . | . . . . . . . . . . . . . . . . . . . . Crushed 4 | . 1 . . . 1 . 1 . . 1 . . . . . . . . . Highest Temperature 372 | 27 120 8 . 206 261 5 256 205 72 36 349 42 . . 72 372 107 35 320 Average Temperature 75 | 11 32 3 . 28 113 5 69 61 30 20 110 16 . . 41 116 50 10 135 Received Heat Transfer 2551 | . 24 108 . 1233 144 78 186 . 6 . 420 12 . . 6 28 48 27 231 Effects 6 | . . . . 1 . . . . . . 4 . . . . 1 . . . Shutdowns 1 | . . . . . . . . . . . . . . . . 1 . . . Energy Bleed 2 | . . . . 1 . . . . . . 1 . . . . . . . . Interference 3 | . . . . . . . . . . . 3 . . . . . . . . Siege Activations 2 | . . . . . . . . . . . . . . . . . . . 2 Total Turns 45 | . . . . . . . . . . . . . . . . . . . 45 Longest Duration 26 | . . . . . . . . . . . . . . . . . . . 26 Robots Corrupted 37 | . . . . . . 2 9 1 1 . 8 1 . . . 5 3 1 6 Combat Hostiles 33 | . . . . . . 2 8 1 1 . 8 1 . . . 4 2 1 5 Parts Fried 90 | . . . . . 1 12 12 2 2 . 24 1 . . . 9 11 1 15 Impact Corruptions 1 | . . . . . . . . . . . . 1 . . . . . . . Robots Melted 2 | . . . . . . . . . . . . . . . . . . . 2 Combat Hostiles 2 | . . . . . . . . . . . . . . . . . . . 2 Parts Melted 40 | . . . . . 5 . 2 . . . 6 . . . 2 . . . 25 Heat Transferred 8547 | 148 222 . . 250 2220 398 300 150 . 50 2267 . . . 259 . 100 . 2183 Parts Sabotaged . | . . . . . . . . . . . . . . . . . . . . Parts Stolen . | . . . . . . . . . . . . . . . . . . . . Parts Stripped . | . . . . . . . . . . . . . . . . . . . . Power Chain Reactions 13 | . . . . 2 . 2 4 1 . 1 1 . . . . . 2 . . Missiles Intercepted . | . . . . . . . . . . . . . . . . . . . . Alert | -11 -10 -9 -9 -8 -7 -6 -6 -6 -6 -6 -5 -5 -5 -5 -4 -4 -4 -4 -3 ------- Run | Scr Mat Mat Min Mat Fac Fac Ext Cet Arc Hub Fac Upp Upp Zhi Pro Fac Upp Upp Res Peak Influence 987 | 10 235 314 3 756 634 592 543 987 440 231 838 . . . . 150 . . 473 Initial 315 | . 6 31 3 . 315 255 221 283 314 154 112 . . . . 3 . . 75 Average 303 | 2 100 156 3 258 349 431 316 629 427 174 527 . . . . 82 . . 206 Maximum Alert Level 3 | . 1 1 . 3 2 2 2 3 2 1 3 . . . . . . . 2 Low Security (%) 40 | 100 96 68 100 59 15 . 14 . . 76 12 . . . . 100 . . 54 Level 1 30 | . 3 31 . 13 51 37 69 8 14 23 21 . . . . . . . 39 Level 2 23 | . . . . 21 33 62 16 52 85 . 43 . . . . . . . 6 Level 3 5 | . . . . 5 . . . 39 . . 23 . . . . . . . . Level 4 . | . . . . . . . . . . . . . . . . . . . . Level 5 . | . . . . . . . . . . . . . . . . . . . . High Security . | . . . . . . . . . . . . . . . . . . . . Max Security . | . . . . . . . . . . . . . . . . . . . . Squads Dispatched 39 | . 2 1 . 7 4 4 4 . . 1 9 . . . . . . . 7 Investigation 7 | . . . . 2 . 1 2 . . . 2 . . . . . . . . Extermination 10 | . . . . . 2 1 . . . . 2 . . . . . . . 5 Reinforcement 18 | . 2 1 . 4 1 2 2 . . 1 3 . . . . . . . 2 Assault 2 | . . . . . 1 . . . . . 1 . . . . . . . . Garrison 2 | . . . . 1 . . . . . . 1 . . . . . . . . Intercept . | . . . . . . . . . . . . . . . . . . . . Construction Impeded 2 | . . . . 1 . . 1 . . . . . . . . . . . . Haulers Reinforced 3 | . . . . . 1 . . . . . 1 . . . . . . . 1 Stealth | -11 -10 -9 -9 -8 -7 -6 -6 -6 -6 -6 -5 -5 -5 -5 -4 -4 -4 -4 -3 --------- Run | Scr Mat Mat Min Mat Fac Fac Ext Cet Arc Hub Fac Upp Upp Zhi Pro Fac Upp Upp Res Distress Signals 8 | . . . . 3 . . 2 2 . . 1 . . . . . . . . Communications Jammed 28 | . . . . . . . . . . . . . . . . . . . 28 Distress Signals 28 | . . . . . . . . . . . . . . . . . . . 28 Times Spotted 267 | . 14 17 . 49 13 13 33 15 3 3 41 1 . . 6 6 8 3 42 Peak Tracking Total 7 | . 3 6 . 7 4 4 5 5 1 3 7 1 . . 4 2 5 3 7 Tactical Retreats 10 | . 1 . . 4 . 1 . . . . 2 . . . . . . . 2 Traps | -11 -10 -9 -9 -8 -7 -6 -6 -6 -6 -6 -5 -5 -5 -5 -4 -4 -4 -4 -3 ------- Run | Scr Mat Mat Min Mat Fac Fac Ext Cet Arc Hub Fac Upp Upp Zhi Pro Fac Upp Upp Res Traps Triggered 13 | . . . . 2 2 . 7 . . . 2 . . . . . . . . Indirectly 7 | . . . . . . . 7 . . . . . . . . . . . . Trap Hack Attempts . | . . . . . . . . . . . . . . . . . . . . Triggered . | . . . . . . . . . . . . . . . . . . . . Disarmed . | . . . . . . . . . . . . . . . . . . . . Reprogrammed . | . . . . . . . . . . . . . . . . . . . . Reused 1 | . . . . . . . . . . . . . . . 1 . . . . Traps Extracted . | . . . . . . . . . . . . . . . . . . . . Installed 9 | . . . . . . . . . . . . . . . 9 . . . . Triggered 3 | . . . . . . . . . . . . . . . 1 . . 2 . Machines | -11 -10 -9 -9 -8 -7 -6 -6 -6 -6 -6 -5 -5 -5 -5 -4 -4 -4 -4 -3 ---------- Run | Scr Mat Mat Min Mat Fac Fac Ext Cet Arc Hub Fac Upp Upp Zhi Pro Fac Upp Upp Res Machines Disabled 21 | . . . . 1 1 . 7 3 3 . 4 . 1 . . 1 . . . Max in Single Turn 1 | . . . . 1 1 . 1 1 . . 1 . 1 . . 1 . . . Garrison Access 2 | . . . . 1 . . . . . . . . . . . 1 . . . Machines Sabotaged . | . . . . . . . . . . . . . . . . . . . . Garrisons Compromised . | . . . . . . . . . . . . . . . . . . . . Overloaded Fab Kills . | . . . . . . . . . . . . . . . . . . . . Fab Network Shutdowns 1 | . . . . . 1 . . . . . . . . . . . . . . Hacking | -11 -10 -9 -9 -8 -7 -6 -6 -6 -6 -6 -5 -5 -5 -5 -4 -4 -4 -4 -3 --------- Run | Scr Mat Mat Min Mat Fac Fac Ext Cet Arc Hub Fac Upp Upp Zhi Pro Fac Upp Upp Res Machines Accessed 32 | . 1 2 . 4 2 3 7 1 . . 4 1 . 4 . 1 . . 2 Terminals 19 | . 1 2 . 2 . 2 7 1 . . 3 . . . . . . . 1 Fabricators 1 | . . . . . 1 . . . . . . . . . . . . . . Repair Stations 2 | . . . . 1 . . . . . . 1 . . . . . . . . Recycling Units . | . . . . . . . . . . . . . . . . . . . . Scanalyzers 1 | . . . . . 1 . . . . . . . . . . . . . . Garrison Access 4 | . . . . 1 . 1 . . . . . . . . . 1 . . 1 Total Hacks 86 | . 3 5 . 9 8 5 21 3 . . 9 1 . 17 . 1 . . 4 Successful 55 | . 2 2 . 7 6 3 10 . . . 5 1 . 17 . 1 . . 1 Failed 31 | . 1 3 . 2 2 2 11 3 . . 4 . . . . . . . 3 Catastrophic 7 | . . 1 . . . . 2 . . . 3 . . . . . . . 1 Database Lockouts . | . . . . . . . . . . . . . . . . . . . . Manual 25 | . 3 4 . 4 1 2 10 1 . . . . . . . . . . . Terminals 49 | . 3 5 . 6 . 3 21 3 . . 5 . . . . . . . 3 Fabricators 6 | . . . . . 6 . . . . . . . . . . . . . . Repair Stations 6 | . . . . 2 . . . . . . 4 . . . . . . . . Recycling Units . | . . . . . . . . . . . . . . . . . . . . Scanalyzers 2 | . . . . . 2 . . . . . . . . . . . . . . Garrison Access 5 | . . . . 1 . 2 . . . . . . . . . 1 . . 1 Terminal Hacks 36 | . . 2 . 2 . 3 9 . . . 1 1 . 17 . . . . 1 Record 5 | . . . . . . . . . . . . . . 5 . . . . . Part Schematic 4 | . . . . . . . . . . . . . . 4 . . . . . Robot Analysis 6 | . . . . . . . 2 . . . . . . 4 . . . . . Prototype ID Bank 7 | . . 1 . 1 . . 1 . . . . . . 4 . . . . . Open Door 5 | . . . . . . 1 3 . . . . 1 . . . . . . . Branch Access Points 3 | . . . . . . 1 . . . . 1 . . . . . . . 1 Unreport Threat 3 | . . 1 . . . . 2 . . . . . . . . . . . . Locate Traps 2 | . . . . . . 1 1 . . . . . . . . . . . . Zone Layout 1 | . . . . 1 . . . . . . . . . . . . . . . Fabricator Hacks 4 | . . . . . 4 . . . . . . . . . . . . . . Load Schematic 1 | . . . . . 1 . . . . . . . . . . . . . . Build 3 | . . . . . 3 . . . . . . . . . . . . . . Repair Station Hacks 6 | . . . . 2 . . . . . . 4 . . . . . . . . Scan Component 3 | . . . . 1 . . . . . . 2 . . . . . . . . Repair 3 | . . . . 1 . . . . . . 2 . . . . . . . . Recycling Unit Hacks . | . . . . . . . . . . . . . . . . . . . . Scanalyzer 2 | . . . . . 2 . . . . . . . . . . . . . . Insert Component 1 | . . . . . 1 . . . . . . . . . . . . . . Analyze 1 | . . . . . 1 . . . . . . . . . . . . . . Garrison Access Hacks 2 | . . . . 1 . . . . . . . . . . . 1 . . . Seal Access 2 | . . . . 1 . . . . . . . . . . . 1 . . . Unauthorized Hacks 5 | . 2 . . 2 . . 1 . . . . . . . . . . . . Terminals 5 | . 2 . . 2 . . 1 . . . . . . . . . . . . Track 2 | . 1 . . 1 . . . . . . . . . . . . . . . Botnet 3 | . 1 . . 1 . . 1 . . . . . . . . . . . . Fabricators . | . . . . . . . . . . . . . . . . . . . . Repair Stations . | . . . . . . . . . . . . . . . . . . . . Recycling Units . | . . . . . . . . . . . . . . . . . . . . Scanalyzers . | . . . . . . . . . . . . . . . . . . . . Garrison Access . | . . . . . . . . . . . . . . . . . . . . Data Cores Recovered 1 | . . . . . . . . . . . . . . . . . . . 1 Used 1 | . . . . . . . . . . . . . . . . . . . 1 Hacking Detections 19 | . 1 2 . 2 1 2 4 1 . . 4 . . . . . . . 2 Full Trace Events 3 | . . . . . . 1 1 . . . 1 . . . . . . . . Feedback Events . | . . . . . . . . . . . . . . . . . . . . Feedback Blocked . | . . . . . . . . . . . . . . . . . . . . Robot Schematics Acquired . | . . . . . . . . . . . . . . . . . . . . Robots Built . | . . . . . . . . . . . . . . . . . . . . Matter . | . . . . . . . . . . . . . . . . . . . . Time . | . . . . . . . . . . . . . . . . . . . . Total Robot Build Rating . | . . . . . . . . . . . . . . . . . . . . Part Schematics Acquired 5 | . . . . . 1 . . . . . . . . 4 . . . . . Parts Built 6 | . . . . . 6 . . . . . . . . . . . . . . Matter 306 | . . . . . 306 . . . . . . . . . . . . . . Time 153 | . . . . . 153 . . . . . . . . . . . . . . Total Part Build Rating 6 | . . . . . 6 . . . . . . . . . . . . . . Parts Repaired 3 | . . . . 1 . . . . . . 2 . . . . . . . . Time 242 | . . . . 26 . . . . . . 216 . . . . . . . . Parts Recycled . | . . . . . . . . . . . . . . . . . . . . Recycled Matter . | . . . . . . . . . . . . . . . . . . . . Retrieved Matter . | . . . . . . . . . . . . . . . . . . . . Retrieved Components . | . . . . . . . . . . . . . . . . . . . . Parts Scanalyzed 1 | . . . . . 1 . . . . . . . . . . . . . . Part Schematics Acquired 1 | . . . . . 1 . . . . . . . . . . . . . . Parts Damaged . | . . . . . . . . . . . . . . . . . . . . Bothacking | -11 -10 -9 -9 -8 -7 -6 -6 -6 -6 -6 -5 -5 -5 -5 -4 -4 -4 -4 -3 ------------ Run | Scr Mat Mat Min Mat Fac Fac Ext Cet Arc Hub Fac Upp Upp Zhi Pro Fac Upp Upp Res Used RIF Installer . | . . . . . . . . . . . . . . . . . . . . Robots Hacked . | . . . . . . . . . . . . . . . . . . . . Non-combat . | . . . . . . . . . . . . . . . . . . . . Combat . | . . . . . . . . . . . . . . . . . . . . Robot Hacks Applied . | . . . . . . . . . . . . . . . . . . . . Relay Couplers Released . | . . . . . . . . . . . . . . . . . . . . Robots Rewired 13 | . . . . . . . 13 . . . . . . . . . . . . Allies Hacked . | . . . . . . . . . . . . . . . . . . . . Hacks Repelled . | . . . . . . . . . . . . . . . . . . . . Allies | -11 -10 -9 -9 -8 -7 -6 -6 -6 -6 -6 -5 -5 -5 -5 -4 -4 -4 -4 -3 -------- Run | Scr Mat Mat Min Mat Fac Fac Ext Cet Arc Hub Fac Upp Upp Zhi Pro Fac Upp Upp Res Total Allies 20 | . . . . . . . 19 1 . . . . . . . . . . . Largest Group 11 | . . . . . . . 11 10 8 3 1 . . . . . . . . Highest-Rated Group 455 | . . . . . . . 455 440 440 168 37 . . . . . . . . Highest-Rated Ally 156 | . . . . . . . 156 156 156 94 37 . . . . . . . . Total Orders . | . . . . . . . . . . . . . . . . . . . . Ally Attacks 230 | . . . . . . . 115 73 26 1 15 . . . . . . . . Total Damage 5190 | . . . . . . . 2399 1980 569 13 229 . . . . . . . . Kills 38 | . . . . . . . 18 13 4 1 2 . . . . . . . . Allies Corrupted . | . . . . . . . . . . . . . . . . . . . . Allies Melted . | . . . . . . . . . . . . . . . . . . . . Intel | -11 -10 -9 -9 -8 -7 -6 -6 -6 -6 -6 -5 -5 -5 -5 -4 -4 -4 -4 -3 ------- Run | Scr Mat Mat Min Mat Fac Fac Ext Cet Arc Hub Fac Upp Upp Zhi Pro Fac Upp Upp Res Robot Analysis Total 6 | . . . . . . . 2 . . . . . . 4 . . . . . Derelict Logs Recovered 7 | . . . 1 . . . . . . . . . 1 . 2 . 1 2 . Drone Launches . | . . . . . . . . . . . . . . . . . . . . Drone Recoveries . | . . . . . . . . . . . . . . . . . . . . Exploration | -11 -10 -9 -9 -8 -7 -6 -6 -6 -6 -6 -5 -5 -5 -5 -4 -4 -4 -4 -3 ------------- Run | Scr Mat Mat Min Mat Fac Fac Ext Cet Arc Hub Fac Upp Upp Zhi Pro Fac Upp Upp Res Turns Passed 15226 | 129 496 415 146 2214 1201 494 1545 413 279 96 1488 750 505 240 1845 553 628 129 1660 Spaces Moved 6328 | 57 203 173 92 670 538 250 678 206 53 58 572 439 314 141 576 260 305 66 677 Core 3 | 2 . . . 1 . . . . . . . . . . . . . . . Treads 6291 | 55 203 173 92 668 505 250 678 206 53 58 572 439 314 141 576 260 305 66 677 Legs 1 | . . . . 1 . . . . . . . . . . . . . . . Wheels 33 | . . . . . 33 . . . . . . . . . . . . . . Hover . | . . . . . . . . . . . . . . . . . . . . Flight . | . . . . . . . . . . . . . . . . . . . . Fastest Speed 50 | 50 160 160 160 155 150 160 160 160 160 160 160 160 160 160 160 180 160 160 160 Average Speed 164 | 156 160 160 160 159 167 160 173 163 160 160 160 160 160 160 160 180 175 160 164 Slowest Speed 400 | 160 160 160 160 400 220 160 210 190 160 160 160 160 160 160 160 180 180 160 180 Overloaded Moves . | . . . . . . . . . . . . . . . . . . . . Propulsion Burnouts . | . . . . . . . . . . . . . . . . . . . . Robots Hopped . | . . . . . . . . . . . . . . . . . . . . Cave-ins Triggered 1 | . . . . . . . . . . . . . . . . . . . 1 Teleports 1 | . . . . . . . . . . . . . . . . . . . 1 Exploration Rate (%) 37 | 4 41 18 24 55 22 9 84 66 67 10 20 77 48 60 65 7 51 8 23 Regions Visited 19 Branch Regions 11 Pre-discovered Areas 4 | . . . . . . . . . . . . . . 3 . . 1 . . Known Exits Taken 9 | . . . . . . 1 . . . . 1 1 1 1 1 1 1 1 . Unknown Exits Taken 10 | 1 1 1 1 1 1 . 1 1 1 1 . . . . . . . . . Scrap Searched 6 | . . . 1 . . . . . . . . 2 1 . . . 1 1 . Spaces Dug 50 | . . . . . 1 1 . . . . 21 2 . . 3 10 . . 12 Terrain Destroyed 310 | . . . . 29 3 1 8 16 . 13 94 2 . . 88 10 9 . 37 Melee 17 | . . . . . . 1 . . . . 4 2 . . 3 . . . 7 Projectile 21 | . . . . . 3 . . . . . . . . . . . . . 18 AOE 272 | . . . . 29 . . 8 16 . 13 90 . . . 85 10 9 . 12 Terrain Rammed . | . . . . . . . . . . . . . . . . . . . . Walls Destroyed . | . . . . . . . . . . . . . . . . . . . . Machines Disabled . | . . . . . . . . . . . . . . . . . . . . Actions | -11 -10 -9 -9 -8 -7 -6 -6 -6 -6 -6 -5 -5 -5 -5 -4 -4 -4 -4 -3 --------- Run | Scr Mat Mat Min Mat Fac Fac Ext Cet Arc Hub Fac Upp Upp Zhi Pro Fac Upp Upp Res Total 10045 | 76 322 241 91 1591 756 301 976 262 239 59 962 470 315 154 1472 310 361 76 1011 Wait 2338 | . 74 3 . 705 119 . 27 8 183 . 230 6 . . 860 25 16 2 80 Move 6308 | 56 202 172 91 669 537 249 677 205 52 57 571 438 313 140 575 259 304 65 676 Hop . | . . . . . . . . . . . . . . . . . . . . Pick Up 138 | 3 8 8 . 26 17 8 11 7 . . 11 4 . 1 . 2 5 1 26 Fast Attach 56 | 7 1 2 . 11 5 . 5 4 . . 6 1 . 5 . . 3 . 6 Attach 45 | . . 1 . 12 4 6 2 . . . 7 1 . . . 2 1 . 9 Detach 4 | . . . . 1 1 . . . . . 2 . . . . . . . . Swap 186 | 1 1 4 . 22 8 10 16 7 . . 28 9 1 3 14 5 6 . 51 Drop 156 | . 6 10 . 25 15 3 22 16 . . 10 3 . 5 . . 7 1 33 Fire 580 | 9 28 38 . 117 45 24 44 15 4 1 88 5 . . 11 17 19 7 108 Melee 31 | . . . . . . 1 . . . . 4 2 1 . 3 . . . 20 Ram . | . . . . . . . . . . . . . . . . . . . . Kick . | . . . . . . . . . . . . . . . . . . . . Crush 25 | . 2 3 . 3 5 . 4 . . 1 5 1 . . . . . . 1 Escape Stasis 1 | . . . . . . . . . . . . . . . . . . . 1 Rewire 168 | . . . . . . . 168 . . . . . . . . . . . . Trap 9 | . . . . . . . . . . . . . . . 9 . . . . Miscellaneous . | . . . . . . . . . . . . . . . . . . . . Route ------- -11/Scrapyard -10/Materials -9/Materials -9/Mines -8/Materials (discovered 3 exits: *Fac x2 / [*Sto]) -7/Factory -6/Factory (discovered 4 exits: Low x2 / *Ext x2) -6/Extension (discovered 2 exits: *Fac / *Cet) -6/Cetus (discovered 2 exits: *Fac / [*Arc]) -6/Archives -6/Hub_04(d) -5/Factory (discovered 3 exits: *Fac / *Upp x2) -5/Upper Caves -5/Upper Caves (discovered 2 exits: *Fac / *Zhi) -5/Zhirov -4/Proximity Caves -4/Factory -4/Upper Caves -4/Upper Caves -3/Research (discovered 2 exits: Qua x2) History --------- Turn | Location | Event 20 | -11/Scrapyard | Discovered new exit (range 16) 130 | -11/Scrapyard | Entered Materials 314 | -10/Materials | Build established: Mutant 572 | -10/Materials | Discovered new exit (range 16) 626 | -10/Materials | Entered another Materials area 626 | -9/Materials | Evolved 2 slots: Utility x2 960 | -9/Materials | Discovered new exit (range 15) 1041 | -9/Materials | Entered Mines 1115 | -9/Mines | Learned Materials emergency access door positions 1163 | -9/Mines | Discovered new exit (range 16) 1187 | -9/Mines | Entered Materials 1187 | -8/Materials | Evolved 2 slots: Propulsion x1, Utility x1 1208 | -8/Materials | Build established: Scavenger-Mutant 2063 | -8/Materials | Garrison activated, responded to threat 2114 | -8/Materials | Destroyed 8 combat bots 2121 | -8/Materials | Lost 9 parts (2p4n2u1w) 2212 | -8/Materials | Discovered new exit (range 8) 2629 | -8/Materials | Repaired Lgt. Armor Plating 2925 | -8/Materials | Discovered new exit (range 5) 2980 | -8/Materials | Core integrity fell below 50% 3124 | -8/Materials | Discovered new exit (range 15) 3401 | -8/Materials | Entered Factory 3401 | -7/Factory | Evolved 2 slots: Propulsion x1, Utility x1 4396 | -7/Factory | Fabricated Lgt. Treads (x2) 4459 | -7/Factory | Fabricated Lgt. Treads (x2) 4491 | -7/Factory | Local fabrication network quarantined 4516 | -7/Factory | Fabricated Lgt. Treads (x2) 4597 | -7/Factory | Discovered new exit (range 4) 4601 | -7/Factory | First assault squad dispatched 4602 | -7/Factory | Entered another Factory area 4602 | -6/Factory | Evolved 2 slots: Power x1, Utility x1 4612 | -6/Factory | Identified exit to Lower Caves 4612 | -6/Factory | Identified exit to Extension 5020 | -6/Factory | Lost 4 parts (2n2w) 5096 | -6/Factory | Entered Extension 5305 | -6/Extension | Build established: Hauler-Mutant 5384 | -6/Extension | Rescued a captive Derelict 5384 | -6/Extension | Rescued a captive Derelict 5786 | -6/Extension | Build established: Commander-Mutant 5876 | -6/Extension | P-60 Hacker assimilated allied Q1-T56(l) 5954 | -6/Extension | Spotted B-75 Beast 5969 | -6/Extension | Allies destroyed B-75 Beast 5976 | -6/Extension | Spotted B-75 Beast 5992 | -6/Extension | Destroyed B-75 Beast 6096 | -6/Extension | Disrupted transfer network 6230 | -6/Extension | Rescued a captive Derelict 6285 | -6/Extension | Rescued A7 6404 | -6/Extension | Rescued a captive Derelict 6405 | -6/Extension | Rescued a captive Derelict 6614 | -6/Extension | Discovered new exit (range 14) 6622 | -6/Extension | Discovered new exit (range 7) 6641 | -6/Extension | Entered Cetus 6641 | -6/Cetus | Accompanied by 10 allies (A7) 6646 | -6/Cetus | Acquired a Cetus Manufacturing Module code from A7 6666 | -6/Cetus | Spotted Cetus Guard 6666 | -6/Cetus | Spotted Cetus Guard 6668 | -6/Cetus | Spotted Cetus Guard 6668 | -6/Cetus | Spotted Cetus Guard 6674 | -6/Cetus | Allies destroyed Cetus Guard 6674 | -6/Cetus | Allies destroyed Cetus Guard 6676 | -6/Cetus | Allies destroyed Cetus Guard 6680 | -6/Cetus | Allies destroyed Cetus Guard 6775 | -6/Cetus | Started Cetus Manufacturing Module 6791 | -6/Cetus | Escorted A7 to Cetus Mainframe 6800 | -6/Cetus | Manufactured an Enhanced Grunt 6802 | -6/Cetus | Cetus Manufacturing Module disabled 6853 | -6/Cetus | Discovered new exit (range 15) 6889 | -6/Cetus | Spotted Cetus Guard 6889 | -6/Cetus | Spotted Cetus Guard 6892 | -6/Cetus | Allies destroyed Cetus Guard 6894 | -6/Cetus | Allies destroyed Cetus Guard 6895 | -6/Cetus | Spotted Cetus Guard 6896 | -6/Cetus | Spotted Cetus Guard 6905 | -6/Cetus | Allies destroyed Cetus Guard 6908 | -6/Cetus | Destroyed Cetus Guard 6917 | -6/Cetus | Discovered new exit (range 15) 6925 | -6/Cetus | Met Revision 17 6984 | -6/Cetus | Build established: Scavenger-Mutant 7054 | -6/Cetus | Entered Archives 7054 | -6/Archives | Accompanied by 8 allies (A7) 7059 | -6/Archives | Received a hacking code to weaken MAIN.C 7130 | -6/Archives | Discovered new exit (range 14) 7333 | -6/Archives | Entered Hub_04(d) 7333 | -6/Hub_04(d) | Accompanied by 3 allies 7402 | -6/Hub_04(d) | Discovered new exit (range 16) 7429 | -6/Hub_04(d) | Entered Factory 7429 | -5/Factory | Accompanied by 1 ally 7429 | -5/Factory | Evolved 2 slots: Utility x2 7805 | -5/Factory | Discovered new exit (range 5) 7887 | -5/Factory | Identified exit to Upper Caves 8029 | -5/Factory | First assault squad dispatched 8234 | -5/Factory | Garrison activated, responded to threat 8443 | -5/Factory | Repaired Centrium Heavy Treads 8552 | -5/Factory | Repaired Centrium Heavy Treads 8917 | -5/Factory | Entered Upper Caves 9014 | -5/Upper Caves | Spotted B-75 Beast 9034 | -5/Upper Caves | Destroyed B-75 Beast 9647 | -5/Upper Caves | Discovered new exit (range 8) 9661 | -5/Upper Caves | Identified exit to Upper Caves 9667 | -5/Upper Caves | Entered another Upper Caves area 9737 | -5/Upper Caves | Discovered new exit (range 15) 9753 | -5/Upper Caves | Identified exit to Factory 10155 | -5/Upper Caves | Discovered new exit (range 8) 10171 | -5/Upper Caves | Identified exit to Zhirov 10172 | -5/Upper Caves | Entered Zhirov 10172 | -5/Zhirov | Discovered new exit (range 3) 10201 | -5/Zhirov | Met Zhirov 10230 | -5/Zhirov | Learned location of Quarantine (-3) 10230 | -5/Zhirov | Learned location of Testing (-2) 10230 | -5/Zhirov | Learned location of Command (-1) 10246 | -5/Zhirov | Zhirov requested help retrieving the SGEMP Prototype 10271 | -5/Zhirov | Found Alien Artifact 10271 | -5/Zhirov | Identified Integrated Dissipator 10271 | -5/Zhirov | Installed Integrated Dissipator, increased core heat dissipation (+20) 10347 | -5/Zhirov | Found Alien Artifact 10407 | -5/Zhirov | Identified exit to Proximity Caves 10412 | -5/Zhirov | Entered Proximity Caves 10419 | -4/Proximity Caves | Learned 8 Research zone layouts 12195 | -4/Proximity Caves | Discovered exit to Factory (range 13) 12209 | -4/Proximity Caves | Learned 4 Research zone layouts 12257 | -4/Proximity Caves | Entered Factory 12257 | -4/Factory | Evolved 2 slots: Power x1, Utility x1 12564 | -4/Factory | Build established: Generator-Mutant 12750 | -4/Factory | Discovered new exit (range 12) 12805 | -4/Factory | Identified exit to Upper Caves 12810 | -4/Factory | Entered Upper Caves 13051 | -4/Upper Caves | Attracted the attention of an 0b10 checkpoint 13376 | -4/Upper Caves | Build established: Scavenger-Mutant 13404 | -4/Upper Caves | Discovered new exit (range 10) 13417 | -4/Upper Caves | Identified exit to Upper Caves 13427 | -4/Upper Caves | Learned location of Armory (-4) 13438 | -4/Upper Caves | Entered another Upper Caves area 13442 | -4/Upper Caves | Attracted the attention of an 0b10 checkpoint 13506 | -4/Upper Caves | Learned location of 1 exit from Proximity Caves 13532 | -4/Upper Caves | Discovered new exit (range 15) 13553 | -4/Upper Caves | Identified exit to Research 13559 | -4/Upper Caves | Learned 4 Research zone layouts 13567 | -4/Upper Caves | Entered Research 13567 | -3/Research | Evolved 2 slots: Utility x2 13619 | -3/Research | Found Prototype Device 13620 | -3/Research | Identified EM Dispersion Field 13624 | -3/Research | Found Faulty EM Dispersion Field 13628 | -3/Research | Found Faulty EM Dispersion Field 13876 | -3/Research | Build established: Generator-Mutant 14171 | -3/Research | Spotted B-86 Titan 14198 | -3/Research | Destroyed B-86 Titan 14238 | -3/Research | Found Unknown Protection 14238 | -3/Research | Identified Hvy. Reflective Plating 14835 | -3/Research | Build established: Scavenger-Mutant 14861 | -3/Research | Identified exit to Quarantine 15164 | -3/Research | Identified Transdimensional Reconstructor 15164 | -3/Research | Warped through subspace 15183 | -3/Research | Crushed by falling debris 15184 | -3/Research | System corruption reached 10% 15210 | -3/Research | Found Fusion Bomb Launcher 15227 | -3/Research | Self-destructed Last Messages --------------- 15210_ Acquired Fusion Bomb Launcher. 15214_ Acquired Particle Reactor. 15224_ C-30 ARC bursts open, deploying its payload. 15224_ H-77 Assassin unfolds itself. 15224_ Slug penetrates Wall. 15224_ Penetrated by Slug. 15224_ Slug penetrates Wall. 15224_ Penetrated by Slug. 15224_ Slug penetrates Wall. 15224_ Penetrated by Slug. 15224_ Slug penetrates Wall. 15224_ K-01 Serf collects debris. 15225_ A-15 Conveyor bypasses jamming via Transport Network Coupler. 15225_ A-15 Conveyor calls for reinforcements. 15225_ ALERT: Hostile activity reported, dispatching reinforcements to area. 15225_ A-15 Conveyor distress signal jammed. 15226_ U-05 Engineer lays Concrete. 15227_ Penetrated by Slug. 15227_ Slug penetrates Wall. Map ----- +----------------------------------------------------+ | #?##############???????????????? | | | ### #???????????????? | | %[ + #???????????????? | | /#############+###### #???????????????? | | ** #??# #?# #???????????????? | | * #??# #?# #???????????????? | | ! #??# #?# #???????????????? | | #??# #?# #???????????????? | | #??# ]#?# #???????????????? | | #??# #?# #???????????????? | | #??# """ #?# #???????????????? | | *#??# """ #?# #???????????????? | | #??#= """ #?# #????###?###????? | | #######??######## #?#######+####+###### ## #????? | | ????????????????# #?????? ; *%! ! ##????? | | ????????????????# #?????? u # !!!= !#?????? | | ????????################# # ! *%= #?????? | | ????????+ ! ;%" #?????? | | ????????# ####### #" = #?????? | | ????????# # # # #?????? | | ##??????+ + # ###############?????? | | #??????######## ## # #???????????????????? | | #?????????????# ?# # #???????????????????? | | #?????????????# ?# # #???????????????????? | | +?????????????# ?# ; +???????????????????? | | #?????????????#+?# #@ #???????????????????? | | #????????????????# # #???????????????????? | | ######## # # # #??????????? | | # """ # # # #??###?????? | | # """ # | # # #??# ?????? | | # """ # # # #??# ?????? | | + ####### ##########??# ?????? | | #### # #?????# #???????????# ?????? | | ???# # #?????# ###########?# ?????? | | ???# ################# gk# #?# ?????? | | ???# A # #?# ?????? | | ???# hh# #?# ?????? | | ???# k# #?###?????? | | ???# % + #?????????? | | ???################+##### # #?????????? | | ???????????????# # # #?????????? | | ???????????????# %= # # #?????????? | | ???????????????#! # ###########?????????? | | ???????????????# # #???????????????????? | | ???????????????# %# #???????????????????? | | ???????????????# %+ #???????????????????? | | ???????????????# =%= # #???????????????????? | | ???????????????# * # #???????????????????? | | ???????????????# # #???????????????????? | | ???????????????########## #???????????????????? | +----------------------------------------------------+ Best States ------------- Heat Dissipation 97 Energy Generation 68 Energy Capacity 1015 Matter Stores 300 Matter Capacity 300 Sight Range 16 Robot Scan Range 20 Terrain Scan Density 10 Jamming Range 12 Power Amplification 30 Armor Coverage 1200 Resistance: TH 25 Resistance: EM 75 Utility Shielding 66 Evasion (%) 40 Targeting Accuracy 8 Core Analysis 6 Recoil Reduction 4 Offensive Hacking 10 Item Schematics ----------------- Lgt. Treads | -7/Factory | Scanalyzed Assault Drone Bay | -5/Zhirov | Free Exp. Heat Sink | -5/Zhirov | Free Exp. Optical Array | -5/Zhirov | Free Imp. Arc Thrower | -5/Zhirov | Free Robot Schematics ------------------ None Fabricated ------------ Lgt. Treads | x2 | -7/Factory Lgt. Treads | x2 | -7/Factory Lgt. Treads | x2 | -7/Factory Alien Tech Used ----------------- Integrated Dissipator Transdimensional Reconstructor Achievements -------------- None Challenges ------------ None Game ------ Seed ShieldModifiedStorage Manual? 0 Play Time 01:33:12 Cumulative 686.5 hours Start 2021.06.25 @ 08:36:37 End 2021.06.26 @ 09:50:16 Sessions 3 Manual Loads 0 Difficulty Rogue Special Mode None Game No. 1051 Rogue 1051 Adventurer 0 Explorer 0 Win Type - Total 64 Types 39/1/9/11/4/0/0/0/0 Lore% 94 Gallery% 94 Achievement% 83 Wizard Run 0 Options --------- ASCII 1 Keyboard 0 Movement Numpad Keybinds 0 Fullscreen 0 Font 14/SmallcapsGlow Map View 76x50 Tactical HUD 1 Map Filters NONE Filters NONE Steam 1 RUN: a8e82b9c-4684-4685-a613-f3d174f0edae